fUST/lending_fUST_20250725
["ID","MTS","AMOUNT","RATE_DAILY","PERIOD"]
[374674380,1753408243035,-460.0,0.00017783,2]
[374674382,1753408243045,-847.05,0.00017783,2]
[374674384,1753408243055,-624.9,0.00017783,2]
[374674386,1753408243069,-460.0,0.00017783,2]
[374674388,1753408243079,-772.06,0.00017783,2]
[374674390,1753408243089,-460.0,0.00017783,2]
[374674392,1753408243098,-501.93,0.00017783,2]
[374674394,1753408243107,-463.11921841,0.00017783,2]
[374674396,1753408243118,-460.0,0.00017783,2]
[374674398,1753408243127,-460.0,0.00017783,2]
[374674400,1753408243138,-2971.11,0.00017783,2]
[374674402,1753408243148,-885.65,0.00017783,2]
[374674404,1753408243157,-465.03665815,0.00017783,2]
[374674406,1753408243166,-2777.19,0.00017783,2]
[374674409,1753408243176,-460.0,0.00017783,2]
[374674411,1753408243186,-1668.27,0.00017783,2]
[374674413,1753408243196,-3068.36,0.00017783,2]
[374674415,1753408243205,-1213.36,0.00017783,2]
[374674417,1753408243214,-460.0,0.00017783,2]
[374674419,1753408243223,-460.0,0.00017783,2]
[374674421,1753408243233,-898.69,0.00017783,2]
[374674423,1753408243242,-1962.28,0.00017783,2]
[374674425,1753408243252,-741.39,0.00017783,2]
[374674427,1753408243261,-255.96430368,0.00017783,2]
[374674429,1753408243271,-460.0,0.00017783,2]
[374674431,1753408243281,-1591.2,0.00017783,2]
[374674433,1753408243290,-481.54,0.00017783,2]
[374674435,1753408243302,-460.0,0.00017786,2]
[374674437,1753408243313,-460.0,0.00017786,2]
[374674439,1753408243323,-633.11,0.00017786,2]
[374674441,1753408243332,-460.0,0.00017786,2]
[374674443,1753408243341,-460.0,0.00017786,2]
[374674445,1753408243351,-500.0,0.00017786,2]
[374674447,1753408243361,-460.0,0.00017786,2]
[374674449,1753408243370,-460.0,0.00017786,2]
[374674451,1753408243380,-462.99,0.00017786,2]
[374674453,1753408243390,-611.11,0.00017786,2]
[374674456,1753408243399,-460.0,0.00017786,2]
[374674458,1753408243410,-460.0,0.00017786,2]
[374674460,1753408243420,-547.85,0.00017786,2]
[374674462,1753408243429,-460.0,0.00017786,2]
[374674464,1753408243438,-462.1,0.00017786,2]
[374674466,1753408243448,-460.0,0.00017786,2]
[374674468,1753408243457,-554.48025649,0.00017786,2]
[374674470,1753408243467,-460.0,0.00017786,2]
[374674472,1753408243476,-564.2,0.00017786,2]
[374674474,1753408243486,-463.32390032,0.00017786,2]
[374674476,1753408243495,-460.0,0.00017786,2]
[374674478,1753408243505,-460.0,0.00017787,2]
[374674480,1753408243514,-460.0,0.00017787,2]
[374674482,1753408243523,-460.0,0.00017787,2]
[374674484,1753408243533,-494.34,0.00017787,2]
[374674486,1753408243543,-460.0,0.00017787,2]
[374674488,1753408243552,-460.0,0.00017787,2]
[374674490,1753408243564,-460.0,0.00017787,2]
[374674492,1753408243574,-460.0,0.00017787,2]
[374674494,1753408243583,-462.78771317,0.00017787,2]
[374674496,1753408243594,-460.0,0.00017787,2]
[374674498,1753408243604,-468.59372322,0.00017787,2]
[374674500,1753408243614,-205.13601822,0.00017787,2]
[374674502,1753408243623,-638.39,0.00017787,2]
[374674504,1753408243632,-460.0,0.00017787,2]
[374674506,1753408243641,-460.0,0.00017787,2]
[374674508,1753408243651,-460.0,0.00017787,2]
[374674510,1753408243660,-460.0,0.00017787,2]
[374674512,1753408243670,-460.0,0.00017787,2]
[374674514,1753408243680,-464.17826561,0.00017787,2]
[374674516,1753408243689,-210.98267253,0.00017787,2]
[374674518,1753408243701,-744.57,0.00017787,2]
[374674520,1753408243711,-518.56610336,0.0001784,2]
[374674522,1753408243721,-460.0,0.00017841,2]
[374674524,1753408243731,-460.0,0.00017841,2]
[374674527,1753408243741,-460.0,0.00017841,2]
[374674529,1753408243752,-460.0,0.00017841,2]
[374674531,1753408243762,-460.0,0.00017841,2]
[374674533,1753408243776,-460.0,0.00017841,2]
[374674535,1753408243785,-460.0,0.00017841,2]
[374674537,1753408243796,-460.0,0.00017845,2]
[374674539,1753408243807,-735.46,0.00017845,2]
[374674541,1753408243817,-460.0,0.00017845,2]
[374674543,1753408243827,-460.0,0.00017845,2]
[374674545,1753408243838,-460.0,0.00017845,2]
[374674547,1753408243848,-460.0,0.00017845,2]
[374674549,1753408243858,-151.0,0.00017907,2]
[374674551,1753408243867,-151.0,0.00017907,2]
[374674553,1753408243877,-215.0738,0.00017907,2]
[374674555,1753408243886,-151.0,0.00017907,2]
[374674557,1753408243896,-151.0,0.00017907,2]
[374674559,1753408243905,-151.0,0.00017907,2]
[374674561,1753408243915,-151.0,0.00017907,2]
[374674563,1753408243924,-151.0,0.00017907,2]
[374674565,1753408243933,-151.0,0.00017907,2]
[374674567,1753408243943,-151.0,0.00017907,2]
[374674569,1753408243952,-157.60888926,0.00017907,2]
[374674571,1753408243962,-25139.62419208,0.00017907,2]
[374674573,1753408243971,-207.26736465,0.00017932,2]
[374674575,1753408243981,-460.0,0.00018051,2]
[374674577,1753408243990,-159.85796053,0.00018051,2]
[374674579,1753408244000,-460.0,0.00018052,2]
[374674581,1753408244009,-508.81,0.00018052,2]
[374674583,1753408244019,-563.78,0.00018052,2]
[374674585,1753408244029,-460.0,0.00018052,2]
[374674587,1753408244039,-496.45,0.00018052,2]
[374674589,1753408244048,-460.0,0.00018054,2]
[374674592,1753408244058,-460.0,0.00018054,2]
[374674594,1753408244069,-460.0,0.00018054,2]
[374674596,1753408244078,-460.0,0.00018054,2]
[374674598,1753408244088,-460.0,0.00018054,2]
[374674600,1753408244097,-460.0,0.00018054,2]
[374674602,1753408244107,-460.0,0.00018054,2]
[374674604,1753408244116,-460.97492389,0.00018054,2]
[374674606,1753408244126,-460.0,0.00018054,2]
[374674608,1753408244135,-460.0,0.00018054,2]
[374674610,1753408244144,-665.84,0.00018054,2]
[374674612,1753408244154,-599.83,0.00018054,2]
[374674614,1753408244163,-548.76,0.00018054,2]
[374674616,1753408244172,-460.0,0.00018054,2]
[374674618,1753408244181,-911.75,0.00018054,2]
[374674620,1753408244190,-460.0,0.00018054,2]
[374674622,1753408244200,-1775.27,0.00018054,2]
[374674624,1753408244210,-460.0,0.00018054,2]
[374674626,1753408244219,-460.0,0.00018054,2]
[374674628,1753408244229,-3979.73,0.00018054,2]
[374674630,1753408244239,-509.76,0.00018054,2]
[374674632,1753408244248,-852.29,0.00018054,2]
[374674634,1753408244257,-5752.3,0.00018054,2]
[374674636,1753408244267,-460.0,0.00018054,2]
[374674638,1753408244276,-510.95,0.00018054,2]
[374674640,1753408244286,-460.0,0.00018054,2]
[374674642,1753408244295,-460.0,0.00018054,2]
[374674644,1753408244305,-460.0,0.00018054,2]
[374674646,1753408244316,-633.93,0.00018054,2]
[374674648,1753408244326,-691.68,0.00018054,2]
[374674650,1753408244335,-1117.81,0.00018054,2]
[374674652,1753408244345,-460.0,0.00018054,2]
[374674654,1753408244354,-3516.8,0.00018054,2]
[374674656,1753408244364,-460.0,0.00018054,2]
[374674658,1753408244373,-460.0,0.00018054,2]
[374674660,1753408244383,-460.0,0.00018054,2]
[374674679,1753408244556,-547.49,0.00018054,2]
[374674681,1753408244568,-835.33,0.00018054,2]
[374674683,1753408244578,-460.0,0.00018054,2]
[374674685,1753408244588,-2155.89,0.00018054,2]
[374674687,1753408244598,-1892.79,0.00018054,2]
[374674690,1753408244608,-808.58,0.00018054,2]
[374674691,1753408244618,-460.0,0.00018054,2]
[374674694,1753408244628,-460.0,0.00018054,2]
[374674696,1753408244638,-460.0,0.00018054,2]
[374674698,1753408244649,-460.0,0.00018054,2]
[374674700,1753408244659,-766.09,0.00018054,2]
[374674702,1753408244669,-460.0,0.00018054,2]
[374674704,1753408244679,-460.0,0.00018054,2]
[374674706,1753408244690,-460.0,0.00018057,2]
[374674708,1753408244700,-460.0,0.00018057,2]
[374674710,1753408244710,-460.0,0.00018057,2]
[374674712,1753408244719,-252.02061032,0.00018057,2]
[374674714,1753408244729,-463.56862986,0.00018057,2]
[374674716,1753408244739,-581.13544029,0.00018057,2]
[374674718,1753408244749,-460.0,0.00018057,2]
[374674720,1753408244759,-460.0,0.00018057,2]
[374674722,1753408244771,-460.0,0.00018057,2]
[374674724,1753408244781,-460.0,0.00018057,2]
[374674726,1753408244791,-460.0,0.00018057,2]
[374674728,1753408244801,-460.0,0.00018057,2]
[374674730,1753408244814,-463.1772997,0.00018057,2]
[374674732,1753408244824,-462.72326476,0.00018057,2]
[374674734,1753408244834,-464.74511057,0.00018057,2]
[374674736,1753408244845,-465.06754705,0.00018057,2]
[374674738,1753408244855,-656.87,0.00018057,2]
[374674740,1753408244865,-460.0,0.00018057,2]
[374674742,1753408244875,-460.0,0.00018057,2]
[374674744,1753408244884,-746.65,0.00018057,2]
[374674746,1753408244894,-460.0,0.00018057,2]
[374674748,1753408244903,-460.0,0.00018057,2]
[374674750,1753408244912,-460.0,0.00018057,2]
[374674752,1753408244921,-460.0,0.00018057,2]
[374674754,1753408244931,-460.0,0.00018057,2]
[374674756,1753408244941,-239.2472601,0.00018057,2]
[374674758,1753408244951,-675.53,0.00018057,2]
[374674760,1753408244960,-468.43,0.00018057,2]
[374674762,1753408244970,-460.0,0.00018057,2]
[374674764,1753408244979,-887.29,0.00018057,2]
[374674766,1753408244989,-460.0,0.00018057,2]
[374674767,1753408244998,-460.0,0.00018057,2]
[374674769,1753408245009,-962.11,0.00018057,2]
[374674771,1753408245019,-460.0,0.00018057,2]
[374674773,1753408245029,-460.0,0.00018057,2]
[374674774,1753408245040,-460.0,0.00018057,2]
[374674775,1753408245050,-460.0,0.00018057,2]
[374674776,1753408245060,-460.0,0.00018057,2]
[374674777,1753408245072,-460.0,0.00018057,2]
[374674778,1753408245082,-460.0,0.00018057,2]
[374674779,1753408245092,-460.0,0.00018057,2]
[374674780,1753408245101,-2352.83,0.00018057,2]
[374674781,1753408245111,-460.0,0.00018057,2]
[374674783,1753408245121,-460.0,0.00018057,2]
[374674786,1753408245131,-973.22,0.00018057,2]
[374674787,1753408245141,-460.0,0.00018057,2]
[374674789,1753408245151,-3637.55,0.00018057,2]
[374674793,1753408245161,-719.25,0.00018057,2]
[374674796,1753408245171,-818.87,0.00018057,2]
[374674797,1753408245181,-1080.43,0.00018057,2]
[374674801,1753408245191,-866.9,0.00018057,2]
[374674802,1753408245200,-460.0,0.00018057,2]
[374674805,1753408245210,-460.0,0.00018057,2]
[374674807,1753408245219,-502.83,0.00018057,2]
[374674809,1753408245230,-1888.51,0.00018057,2]
[374674811,1753408245239,-2448.2,0.00018057,2]
[374674813,1753408245249,-460.0,0.00018057,2]
[374674816,1753408245259,-847.05,0.00018057,2]
[374674817,1753408245268,-624.9,0.00018057,2]
[374674820,1753408245279,-460.0,0.00018057,2]
[374674821,1753408245288,-772.06,0.00018057,2]
[374674824,1753408245298,-473.78182348,0.00018057,2]
[374674826,1753408245307,-501.93,0.00018057,2]
[374674828,1753408245322,-460.0,0.00018057,2]
[374674830,1753408245331,-460.0,0.00018057,2]
[374674832,1753408245340,-2971.11,0.00018057,2]
[374674834,1753408245349,-885.65,0.00018057,2]
[374674836,1753408245359,-2777.19,0.00018057,2]
[374674838,1753408245368,-1668.27,0.00018057,2]
[374674840,1753408245377,-460.0,0.00018057,2]
[374674842,1753408245387,-3068.36,0.00018057,2]
[374674844,1753408245395,-1213.36,0.00018057,2]
[374674846,1753408245405,-460.0,0.00018057,2]
[374674848,1753408245417,-460.0,0.00018057,2]
[374674850,1753408245427,-898.69,0.00018057,2]
[374674852,1753408245436,-1962.28,0.00018057,2]
[374674854,1753408245446,-741.39,0.00018057,2]
[374674856,1753408245455,-463.76027719,0.00018057,2]
[374674858,1753408245465,-1591.2,0.00018057,2]
[374674860,1753408245474,-481.54,0.00018057,2]
[374674862,1753408245484,-460.0,0.0001806,2]
[374674864,1753408245492,-460.0,0.0001806,2]
[374674866,1753408245502,-633.11,0.0001806,2]
[374674868,1753408245511,-460.0,0.0001806,2]
[374674870,1753408245520,-465.77853043,0.0001806,2]
[374674872,1753408245530,-460.0,0.0001806,2]
[374674874,1753408245539,-460.0,0.0001806,2]
[374674876,1753408245548,-462.99,0.0001806,2]
[374674878,1753408245557,-611.11,0.0001806,2]
[374674880,1753408245569,-460.0,0.0001806,2]
[374674882,1753408245578,-460.0,0.0001806,2]
[374674884,1753408245587,-547.85,0.0001806,2]
[374674885,1753408245597,-460.0,0.0001806,2]
[374674887,1753408245607,-462.1,0.0001806,2]
[374674890,1753408245618,-460.0,0.0001806,2]
[374674892,1753408245628,-460.0,0.0001806,2]
[374674894,1753408245637,-564.2,0.0001806,2]
[374674896,1753408245647,-460.0,0.0001806,2]
[374674898,1753408245657,-460.0,0.00018061,2]
[374674899,1753408245666,-460.0,0.00018061,2]
[374674902,1753408245677,-460.0,0.00018061,2]
[374674904,1753408245686,-494.34,0.00018061,2]
[374674906,1753408245695,-460.0,0.00018061,2]
[374674908,1753408245704,-464.56207732,0.00018061,2]
[374674909,1753408245714,-460.0,0.00018061,2]
[374674911,1753408245724,-458.73710332,0.00018061,2]
[374674913,1753408245734,-460.0,0.00018061,2]
[374674915,1753408245743,-638.39,0.00018061,2]
[374674918,1753408245753,-460.0,0.00018061,2]
[374674920,1753408245764,-460.0,0.00018061,2]
[374674922,1753408245777,-460.0,0.00018061,2]
[374674924,1753408245787,-460.0,0.00018061,2]
[374674926,1753408245797,-460.0,0.00018061,2]
[374674927,1753408245807,-744.57,0.00018061,2]
[374674929,1753408245818,-470.50751923,0.00018115,2]
[374674931,1753408245828,-460.0,0.00018115,2]
[374674933,1753408245837,-460.0,0.00018115,2]
[374674935,1753408245848,-460.0,0.00018115,2]
[374674938,1753408245859,-460.0,0.00018115,2]
[374674940,1753408245868,-460.0,0.00018115,2]
[374674942,1753408245878,-460.0,0.00018115,2]
[374674944,1753408245888,-460.0,0.00018119,2]
[374674946,1753408245897,-735.46,0.00018119,2]
[374674948,1753408245906,-460.0,0.00018119,2]
[374674950,1753408245916,-460.0,0.00018119,2]
[374674951,1753408245925,-460.0,0.00018119,2]
[374674953,1753408245934,-460.0,0.00018119,2]
[374674956,1753408245945,-925.7188517,0.00018212,2]
[374674959,1753408245954,-966.18851498,0.00018321,2]
[374674961,1753408245963,-1000.0,0.00018321,2]
[374674963,1753408245973,-460.0,0.00018325,2]
[374674965,1753408245983,-460.0,0.00018326,2]
[374674967,1753408245992,-508.81,0.00018326,2]
[374674969,1753408246002,-563.78,0.00018326,2]
[374674971,1753408246012,-460.0,0.00018326,2]
[374674973,1753408246021,-496.45,0.00018326,2]
[374674975,1753408246031,-271.00273005,0.00018328,2]
[374674977,1753408246040,-278.35137865,0.00018328,2]
[374674979,1753408246050,-460.0,0.00018328,2]
[374674981,1753408246059,-460.0,0.00018328,2]
[374674983,1753408246071,-460.0,0.00018328,2]
[374674985,1753408246080,-460.0,0.00018328,2]
[374674987,1753408246089,-460.0,0.00018328,2]
[374674989,1753408246101,-378.59037752,0.00018328,2]
[374674991,1753408246112,-406.31018216,0.00018328,2]
[374674993,1753408246123,-665.84,0.00018328,2]
[374674995,1753408246133,-599.83,0.00018328,2]
[374674997,1753408246143,-548.76,0.00018328,2]
[374674999,1753408246152,-460.0,0.00018328,2]
[374675001,1753408246162,-911.75,0.00018328,2]
[374675003,1753408246171,-460.0,0.00018328,2]
[374675005,1753408246180,-1775.27,0.00018328,2]
[374675007,1753408246190,-460.0,0.00018328,2]
[374675009,1753408246200,-460.0,0.00018328,2]
[374675011,1753408246210,-3979.73,0.00018328,2]
[374675014,1753408246220,-509.76,0.00018328,2]
[374675016,1753408246230,-852.29,0.00018328,2]
[374675018,1753408246239,-5752.3,0.00018328,2]
[374675020,1753408246249,-460.0,0.00018328,2]
[374675022,1753408246258,-510.95,0.00018328,2]
[374675024,1753408246269,-460.0,0.00018328,2]
[374675026,1753408246278,-460.0,0.00018328,2]
[374675028,1753408246288,-460.0,0.00018328,2]
[374675030,1753408246297,-633.93,0.00018328,2]
[374675032,1753408246307,-691.68,0.00018328,2]
[374675034,1753408246319,-1117.81,0.00018328,2]
[374675036,1753408246329,-460.0,0.00018328,2]
[374675038,1753408246339,-3516.8,0.00018328,2]
[374675040,1753408246349,-460.0,0.00018328,2]
[374675042,1753408246358,-460.0,0.00018328,2]
[374675044,1753408246367,-460.0,0.00018328,2]
[374675046,1753408246378,-547.49,0.00018328,2]
[374675048,1753408246387,-835.33,0.00018328,2]
[374675050,1753408246397,-460.0,0.00018328,2]
[374675052,1753408246406,-2155.89,0.00018328,2]
[374675054,1753408246415,-1892.79,0.00018328,2]
[374675056,1753408246424,-808.58,0.00018328,2]
[374675058,1753408246434,-460.0,0.00018328,2]
[374675060,1753408246443,-460.0,0.00018328,2]
[374675062,1753408246453,-460.0,0.00018328,2]
[374675063,1753408246462,-460.0,0.00018328,2]
[374675065,1753408246472,-766.09,0.00018328,2]
[374675067,1753408246481,-460.0,0.00018328,2]
[374675069,1753408246491,-460.0,0.00018328,2]
[374675072,1753408246501,-460.0,0.00018331,2]
[374675073,1753408246511,-464.92293722,0.00018331,2]
[374675076,1753408246521,-460.0,0.00018331,2]
[374675078,1753408246531,-460.0,0.00018331,2]
[374675080,1753408246540,-460.0,0.00018331,2]
[374675082,1753408246549,-460.0,0.00018331,2]
[374675084,1753408246559,-460.0,0.00018331,2]
[374675086,1753408246570,-231.58241698,0.00018331,2]
[374675088,1753408246579,-466.68674085,0.00018331,2]
[374675090,1753408246589,-656.87,0.00018331,2]
[374675091,1753408246599,-309.43110303,0.00018331,2]
[374675093,1753408246608,-460.0,0.00018331,2]
[374675095,1753408246617,-746.65,0.00018331,2]
[374675097,1753408246627,-460.0,0.00018331,2]
[374675099,1753408246636,-460.0,0.00018331,2]
[374675101,1753408246645,-460.0,0.00018331,2]
[374675103,1753408246655,-460.0,0.00018331,2]
[374675105,1753408246664,-460.0,0.00018331,2]
[374675107,1753408246674,-675.53,0.00018331,2]
[374675109,1753408246683,-468.43,0.00018331,2]
[374675111,1753408246693,-464.74400222,0.00018331,2]
[374675113,1753408246703,-887.29,0.00018331,2]
[374675115,1753408246712,-460.0,0.00018331,2]
[374675117,1753408246722,-460.0,0.00018331,2]
[374675119,1753408246731,-962.11,0.00018331,2]
[374675121,1753408246741,-460.0,0.00018331,2]
[374675122,1753408246751,-460.0,0.00018331,2]
[374675123,1753408246762,-380.19708914,0.00018331,2]
[374675124,1753408246775,-460.0,0.00018331,2]
[374675125,1753408246784,-460.0,0.00018331,2]
[374675126,1753408246794,-460.0,0.00018331,2]
[374675127,1753408246803,-460.0,0.00018331,2]
[374675128,1753408246815,-460.0,0.00018331,2]
[374675129,1753408246824,-2352.83,0.00018331,2]
[374675130,1753408246833,-460.0,0.00018331,2]
[374675131,1753408246843,-460.0,0.00018331,2]
[374675132,1753408246853,-973.22,0.00018331,2]
[374675133,1753408246863,-460.0,0.00018331,2]
[374675134,1753408246873,-3637.55,0.00018331,2]
[374675135,1753408246882,-719.25,0.00018331,2]
[374675136,1753408246891,-818.87,0.00018331,2]
[374675137,1753408246901,-1080.43,0.00018331,2]
[374675138,1753408246911,-866.9,0.00018331,2]
[374675139,1753408246920,-460.0,0.00018331,2]
[374675140,1753408246930,-460.0,0.00018331,2]
[374675141,1753408246939,-502.83,0.00018331,2]
[374675142,1753408246948,-1888.51,0.00018331,2]
[374675143,1753408246957,-2448.2,0.00018331,2]
[374675144,1753408246967,-460.0,0.00018331,2]
[374675145,1753408246976,-847.05,0.00018331,2]
[374675146,1753408246985,-624.9,0.00018331,2]
[374675147,1753408246995,-460.0,0.00018331,2]
[374675149,1753408247004,-772.06,0.00018331,2]
[374675150,1753408247013,-501.93,0.00018331,2]
[374675152,1753408247023,-460.0,0.00018331,2]
[374675154,1753408247032,-460.0,0.00018331,2]
[374675156,1753408247041,-2971.11,0.00018331,2]
[374675158,1753408247051,-885.65,0.00018331,2]
[374675160,1753408247060,-2777.19,0.00018331,2]
[374675162,1753408247070,-1668.27,0.00018331,2]
[374675164,1753408247079,-460.0,0.00018331,2]
[374675166,1753408247089,-3068.36,0.00018331,2]
[374675168,1753408247098,-1213.36,0.00018331,2]
[374675170,1753408247108,-460.0,0.00018331,2]
[374675172,1753408247117,-396.99319938,0.00018331,2]
[374675174,1753408247126,-898.69,0.00018331,2]
[374675176,1753408247136,-1962.28,0.00018331,2]
[374675178,1753408247145,-741.39,0.00018331,2]
[374675180,1753408247155,-1591.2,0.00018331,2]
[374675182,1753408247165,-481.54,0.00018331,2]
[374675184,1753408247176,-460.0,0.00018334,2]
[374675186,1753408247185,-460.0,0.00018334,2]
[374675188,1753408247195,-633.11,0.00018334,2]
[374675190,1753408247205,-460.0,0.00018334,2]
[374675192,1753408247215,-460.0,0.00018334,2]
[374675194,1753408247225,-460.0,0.00018334,2]
[374675196,1753408247234,-462.99,0.00018334,2]
[374675198,1753408247243,-611.11,0.00018334,2]
[374675200,1753408247253,-460.0,0.00018334,2]
[374675202,1753408247263,-460.0,0.00018334,2]
[374675204,1753408247273,-547.85,0.00018334,2]
[374675206,1753408247282,-460.0,0.00018334,2]
[374675208,1753408247291,-462.1,0.00018334,2]
[374675210,1753408247301,-460.0,0.00018334,2]
[374675212,1753408247312,-460.0,0.00018334,2]
[374675214,1753408247321,-564.2,0.00018334,2]
[374675216,1753408247330,-460.0,0.00018334,2]
[374675218,1753408247340,-460.0,0.00018335,2]
[374675220,1753408247362,-460.0,0.00018335,2]
[374675222,1753408247373,-460.0,0.00018335,2]
[374675224,1753408247382,-494.34,0.00018335,2]
[374675226,1753408247392,-460.0,0.00018335,2]
[374675228,1753408247401,-460.0,0.00018335,2]
[374675230,1753408247410,-460.0,0.00018335,2]
[374675232,1753408247419,-638.39,0.00018335,2]
[374675234,1753408247429,-460.0,0.00018335,2]
[374675236,1753408247439,-460.0,0.00018335,2]
[374675238,1753408247449,-410.50965263,0.00018335,2]
[374675240,1753408247468,-460.0,0.00018335,2]
[374675242,1753408247478,-460.0,0.00018335,2]
[374675244,1753408247487,-744.57,0.00018335,2]
[374675246,1753408247496,-500.0,0.00018373,2]
[374675248,1753408247506,-256.68562438,0.00018373,2]
[374675250,1753408247515,-363.5107278,0.00018373,2]
[374675252,1753408247524,-3510.91136505,0.00018376,2]
[374675254,1753408247533,-460.0,0.00018389,2]
[374675268,1753408247663,-460.0,0.00018389,2]
[374675270,1753408247673,-471.63583641,0.00018389,2]
[374675272,1753408247683,-465.94815217,0.00018389,2]
[374675274,1753408247693,-460.0,0.00018389,2]
[374675276,1753408247703,-460.0,0.00018389,2]
[374675278,1753408247712,-460.0,0.00018393,2]
[374675280,1753408247722,-735.46,0.00018393,2]
[374675282,1753408247731,-460.0,0.00018393,2]
[374675284,1753408247740,-460.0,0.00018393,2]
[374675286,1753408247750,-282.77290652,0.00018393,2]
[374675288,1753408247760,-460.0,0.00018393,2]
[374675290,1753408247772,-460.0,0.00018599,2]
[374675292,1753408247782,-460.0,0.000186,2]
[374675294,1753408247792,-508.81,0.000186,2]
[374675296,1753408247801,-563.78,0.000186,2]
[374675298,1753408247816,-464.72601826,0.000186,2]
[374675300,1753408247826,-496.45,0.000186,2]
[374675302,1753408247836,-465.40000415,0.00018602,2]
[374675304,1753408247845,-460.0,0.00018602,2]
[374675306,1753408247855,-460.0,0.00018602,2]
[374675308,1753408247864,-460.0,0.00018602,2]
[374675310,1753408247874,-460.0,0.00018602,2]
[374675312,1753408247883,-665.84,0.00018602,2]
[374675314,1753408247892,-599.83,0.00018602,2]
[374675316,1753408247901,-548.76,0.00018602,2]
[374675318,1753408247910,-460.0,0.00018602,2]
[374675319,1753408247919,-911.75,0.00018602,2]
[374675321,1753408247928,-460.0,0.00018602,2]
[374675324,1753408247937,-1775.27,0.00018602,2]
[374675325,1753408247947,-460.0,0.00018602,2]
[374675327,1753408247956,-460.0,0.00018602,2]
[374675329,1753408247965,-3979.73,0.00018602,2]
[374675331,1753408247974,-509.76,0.00018602,2]
[374675334,1753408247986,-852.29,0.00018602,2]
[374675335,1753408247995,-5752.3,0.00018602,2]
[374675337,1753408248005,-460.0,0.00018602,2]
[374675339,1753408248015,-510.95,0.00018602,2]
[374675341,1753408248024,-460.0,0.00018602,2]
[374675343,1753408248033,-460.0,0.00018602,2]
[374675345,1753408248042,-460.0,0.00018602,2]
[374675347,1753408248052,-633.93,0.00018602,2]
[374675349,1753408248062,-691.68,0.00018602,2]
[374675351,1753408248072,-1117.81,0.00018602,2]
[374675353,1753408248081,-460.0,0.00018602,2]
[374675355,1753408248091,-3516.8,0.00018602,2]
[374675357,1753408248100,-460.0,0.00018602,2]
[374675359,1753408248110,-460.0,0.00018602,2]
[374675361,1753408248119,-460.0,0.00018602,2]
[374675363,1753408248129,-547.49,0.00018602,2]
[374675365,1753408248139,-835.33,0.00018602,2]
[374675367,1753408248148,-460.0,0.00018602,2]
[374675369,1753408248157,-2155.89,0.00018602,2]
[374675371,1753408248166,-1892.79,0.00018602,2]
[374675373,1753408248175,-808.58,0.00018602,2]
[374675375,1753408248185,-460.0,0.00018602,2]
[374675377,1753408248194,-460.0,0.00018602,2]
[374675378,1753408248204,-460.0,0.00018602,2]
[374675381,1753408248214,-460.0,0.00018602,2]